[Event "FIDE Open Sachove Univerzity QCC"]
[Site "Ceske Budejovice"]
[Date "2020.07.06"]
[Round "6.14"]
[White "Sobotka, Radim"]
[Black "Chmelik, Benedikt"]
[Result "1-0"]
[ECO "E76"]
[WhiteElo "1764"]
[BlackElo "1571"]
[Annotator "NA"]
[PlyCount "91"]
[EventDate "2020.07.01"]
[EventType "swiss"]
[EventCountry "CZE"]
[SourceTitle "playchess.com"]
[Source "ChessBase"]
[SourceQuality "1"]
[TimeControl "40/5400+30:1800+30"]

1. d4 {[%emt 0:00:00]} Nf6 {[%emt 0:00:00]} 2. c4 {[%emt 0:00:00]} g6 {[%emt 0:00:00]} 3. Nc3 {[%emt 0:00:00]} Bg7 {[%emt 0:00:00]} 4. e4 {[%emt 0:00:03]} d6 {[%emt 0:00:07]} 5. f4 {[%emt 0:00:19]} O-O {[%emt 0:00:38]} 6. Nf3 {[%emt 0:00:19]} Re8 {[%emt 0:01:09]} 7. Bd3 {[%emt 0:05:06]} Nfd7 {[%emt 0:02:08]} 8. O-O {[%emt 0:02:01]} e5 {[%emt 0:00:14]} 9. fxe5 {[%emt 0:00:27]} dxe5 {[%emt 0:00:09]} 10. d5 {[%emt 0:00:26]} Nc5 {[%emt 0:00:30]} 11. Bg5 {[%emt 0:05:46]} f6 {[%emt 0:04:07]} 12. Be3 {[%emt 0:00:52]} Nxd3 {[%emt 0:07:35]} 13. Qxd3 {[%emt 0:00:03]} f5 {[%emt 0:00:18]} 14. Bg5 {[%emt 0:01:38]} Qd6 {[%emt 0:00:43]} 15. Rae1 {[%emt 0:07:20]} c6 {[%emt 0:03:08]} 16. a3 {[%emt 0:06:51]} a5 {[%emt 0:00:39]} 17. Be3 {[%emt 0:02:35]} cxd5 {[%emt 0:01:51]} 18. cxd5 {[%emt 0:09:29]} Bd7 {[%emt 0:06:25]} 19. exf5 {[%emt 0:08:08]} Bxf5 {[%emt 0:00:48]} 20. Qb5 {[%emt 0:00:12]} Qd7 {[%emt 0:01:00]} 21. Rf2 {[%emt 0:16:26]} Qxb5 {[%emt 0:07:24]} 22. Nxb5 {[%emt 0:00:22]} Na6 {[%emt 0:00:19]} 23. Nd6 {[%emt 0:01:41]} Re7 {[%emt 0:00:54]} 24. Nxf5 {[%emt 0:00:15]} gxf5 {[%emt 0:00:09]} 25. Nh4 {[%emt 0:01:09]} f4 {[%emt 0:02:10]} 26. Bxf4 {[%emt 0:00:21]} Nc5 {[%emt 0:08:43]} 27. Bg5 {[%emt 0:03:51]} Rd7 {[%emt 0:02:21]} 28. Rd2 {[%emt 0:05:21]} h6 {[%emt 0:02:12]} 29. Be3 {[%emt 0:01:14]} Ne4 {[%emt 0:00:37]} 30. Rdd1 {[%emt 0:02:07]} Nf6 {[%emt 0:03:56]} 31. d6 {[%emt 0:01:38]} Ne8 {[%emt 0:05:06]} 32. Nf5 {[%emt 0:01:43]} Ra6 {[%emt 0:00:52]} 33. Bxh6 {[%emt 0:04:47]} Bxh6 {[%emt 0:05:03]} 34. Nxh6+ {[%emt 0:00:02]} Kg7 {[%emt 0:00:02]} 35. Ng4 {[%emt 0:00:53]} Raxd6 {[%emt 0:00:25]} 36. Rxd6 {[%emt 0:00:42]} Rxd6 {[%emt 0:01:37]} 37. Rxe5 {[%emt 0:00:41]} Kf7 {[%emt 0:00:42]} 38. Rxa5 {[%emt 0:04:28]} Rd1+ {[%emt 0:00:12]} 39. Kf2 {[%emt 0:00:11]} Rd2+ {[%emt 0:00:06]} 40. Kf3 {[%emt 0:00:37]} Rxb2 {[%emt 0:00:03]} 41. Ne5+ {[%emt 0:31:25]} Ke6 {[%emt 0:30:20]} 42. Nc4 {[%emt 0:01:15]} Rb3+ {[%emt 0:00:36]} 43. Kf4 {[%emt 0:00:50]} Nf6 {[%emt 0:01:13]} 44. Re5+ {[%emt 0:03:22]} Kd7 {[%emt 0:00:50]} 45. Kg5 {[%emt 0:03:07]} Nh7+ {[%emt 0:01:52]} 46. Kg6 {[%emt 0:00:25]} 1-0

[Event "FIDE Open Sachove Univerzity QCC"]
[Site "Ceske Budejovice"]
[Date "2020.07.06"]
[Round "6.15"]
[White "Frnoch, Vojtech"]
[Black "Valasek, Jakub"]
[Result "1/2-1/2"]
[ECO "D02"]
[WhiteElo "1597"]
[BlackElo "1688"]
[Annotator "NA"]
[PlyCount "68"]
[EventDate "2020.07.01"]
[EventType "swiss"]
[EventCountry "CZE"]
[SourceTitle "playchess.com"]
[Source "ChessBase"]
[SourceQuality "1"]
[TimeControl "40/5400+30:1800+30"]

1. Nf3 {[%emt 0:00:00]} d5 {[%emt 0:00:19]} 2. d4 {[%emt 0:00:00]} Nf6 {[%emt 0:00:37]} 3. Bf4 {[%emt 0:00:30]} c6 {[%emt 0:01:22]} 4. c3 {[%emt 0:01:15]} Qb6 {[%emt 0:01:29]} 5. Qb3 {[%emt 0:00:38]} Qxb3 {[%emt 0:01:14]} 6. axb3 {[%emt 0:00:16]} Nbd7 {[%emt 0:01:33]} 7. Nbd2 {[%emt 0:00:55]} g6 {[%emt 0:01:56]} 8. e3 {[%emt 0:01:28]} Bg7 {[%emt 0:01:14]} 9. Bd3 {[%emt 0:00:43]} O-O {[%emt 0:01:23]} 10. e4 {[%emt 0:07:06]} dxe4 {[%emt 0:00:49]} 11. Bxe4 {[%emt 0:01:15]} Nh5 {[%emt 0:02:04]} 12. Bc7 {[%emt 0:02:22]} Ndf6 {[%emt 0:01:59]} 13. h3 {[%emt 0:05:42]} Nd5 {[%emt 0:02:22]} 14. Bxd5 {[%emt 0:02:40]} cxd5 {[%emt 0:00:24]} 15. O-O {[%emt 0:01:27]} Bd7 {[%emt 0:02:44]} 16. Rfe1 {[%emt 0:00:37]} e6 {[%emt 0:04:03]} 17. Bd6 {[%emt 0:07:14]} Rfd8 {[%emt 0:04:08]} 18. Bh2 {[%emt 0:01:26]} Bc6 {[%emt 0:01:24]} 19. Ne5 {[%emt 0:02:28]} Rdc8 {[%emt 0:02:02]} 20. Ndf3 {[%emt 0:00:50]} h6 {[%emt 0:01:12]} 21. b4 {[%emt 0:03:51]} Nf6 {[%emt 0:02:59]} 22. Nd3 {[%emt 0:02:47]} b6 {[%emt 0:03:09]} 23. Nde5 {[%emt 0:01:15]} Bb5 {[%emt 0:00:56]} 24. Nd2 {[%emt 0:04:59]} a5 {[%emt 0:01:29]} 25. bxa5 {[%emt 0:00:58]} bxa5 {[%emt 0:01:03]} 26. Nb3 {[%emt 0:00:56]} a4 {[%emt 0:02:17]} 27. Nc5 {[%emt 0:02:51]} Bf8 {[%emt 0:01:13]} 28. Ned3 {[%emt 0:04:02]} Bxd3 {[%emt 0:01:33]} 29. Nxd3 {[%emt 0:00:16]} a3 {[%emt 0:01:27]} 30. Bf4 {[%emt 0:06:42]} axb2 {[%emt 0:05:42]} 31. Rxa8 {[%emt 0:00:17]} Rxa8 {[%emt 0:00:38]} 32. Nxb2 {[%emt 0:00:22]} Ra2 {[%emt 0:02:45]} 33. Rb1 {[%emt 0:06:42]} g5 {[%emt 0:02:50]} 34. Be3 {[%emt 0:04:05]} Ra8 {[%emt 0:03:10]} 1/2-1/2

[Event "FIDE Open Sachove Univerzity QCC"]
[Site "Ceske Budejovice"]
[Date "2020.07.06"]
[Round "6.16"]
[White "Dobsa, Emma"]
[Black "Kanka, Lukas"]
[Result "0-1"]
[ECO "B05"]
[WhiteElo "1345"]
[BlackElo "1667"]
[Annotator "NA"]
[PlyCount "70"]
[EventDate "2020.07.01"]
[EventType "swiss"]
[EventCountry "CZE"]
[SourceTitle "playchess.com"]
[Source "ChessBase"]
[SourceQuality "1"]
[TimeControl "40/5400+30:1800+30"]

1. e4 {[%emt 0:00:00]} Nf6 {[%emt 0:00:00]} 2. e5 {[%emt 0:00:00]} Nd5 {[%emt 0:00:00]} 3. d4 {[%emt 0:00:11]} d6 {[%emt 0:01:12]} 4. Nf3 {[%emt 0:00:11]} Nc6 {[%emt 0:02:39]} 5. Be2 {[%emt 0:00:53]} Bg4 {[%emt 0:02:19]} 6. O-O {[%emt 0:00:18]} e6 {[%emt 0:04:00]} 7. c4 {[%emt 0:00:08]} Nde7 {[%emt 0:01:25]} 8. exd6 {[%emt 0:01:49]} Qxd6 {[%emt 0:03:18]} 9. Be3 {[%emt 0:05:54]} g6 {[%emt 0:10:53]} 10. Nc3 {[%emt 0:07:45]} Bg7 {[%emt 0:05:58]} 11. Nb5 {[%emt 0:03:30]} Qd7 {[%emt 0:05:41]} 12. d5 {[%emt 0:03:11]} exd5 {[%emt 0:03:36]} 13. cxd5 {[%emt 0:00:10]} Bxf3 {[%emt 0:01:26]} 14. Bxf3 {[%emt 0:01:01]} Ne5 {[%emt 0:03:35]} 15. Be2 {[%emt 0:01:48]} O-O {[%emt 0:02:36]} 16. f4 {[%emt 0:02:18]} Ng4 {[%emt 0:02:50]} 17. Bxg4 {[%emt 0:00:28]} Qxb5 {[%emt 0:00:07]} 18. d6 {[%emt 0:00:39]} Rfd8 {[%emt 0:02:18]} 19. d7 {[%emt 0:06:43]} f5 {[%emt 0:00:20]} 20. Be2 {[%emt 0:01:45]} Qxd7 {[%emt 0:03:04]} 21. Qb3+ {[%emt 0:00:08]} Nd5 {[%emt 0:05:45]} 22. Bc4 {[%emt 0:08:05]} c6 {[%emt 0:03:32]} 23. Rfd1 {[%emt 0:01:41]} b5 {[%emt 0:05:02]} 24. Bxd5+ {[%emt 0:00:57]} cxd5 {[%emt 0:00:04]} 25. Rd2 {[%emt 0:06:48]} Kh8 {[%emt 0:00:46]} 26. Rad1 {[%emt 0:00:39]} d4 {[%emt 0:00:08]} 27. Qd3 {[%emt 0:00:40]} Qc7 {[%emt 0:04:00]} 28. Bf2 {[%emt 0:01:56]} a6 {[%emt 0:02:50]} 29. Qf3 {[%emt 0:01:27]} Qc5 {[%emt 0:01:11]} 30. Bxd4 {[%emt 0:03:01]} Bxd4+ {[%emt 0:02:37]} 31. Kh1 {[%emt 0:04:28]} Bf6 {[%emt 0:00:22]} 32. Rxd8+ {[%emt 0:02:45]} Rxd8 {[%emt 0:00:08]} 33. Rxd8+ {[%emt 0:00:22]} Bxd8 {[%emt 0:00:04]} 34. Qd1 {[%emt 0:01:08]} Bb6 {[%emt 0:01:54]} 35. g3 {[%emt 0:00:42]} Qc6+ {[%emt 0:00:10]} 0-1

[Event "FIDE Open Sachove Univerzity QCC"]
[Site "Ceske Budejovice"]
[Date "2020.07.06"]
[Round "6.17"]
[White "Josko, Jiri"]
[Black "Havelkova, Beata"]
[Result "1-0"]
[ECO "A45"]
[WhiteElo "1649"]
[BlackElo "1394"]
[Annotator "NA"]
[PlyCount "35"]
[EventDate "2020.07.01"]
[EventType "swiss"]
[EventCountry "CZE"]
[SourceTitle "playchess.com"]
[Source "ChessBase"]
[SourceQuality "1"]
[TimeControl "40/5400+30:1800+30"]

1. d4 {[%emt 0:02:02]} Nf6 {[%emt 0:00:03]} 2. Bf4 {[%emt 0:00:48]} g6 {[%emt 0:01:41]} 3. Nc3 {[%emt 0:00:44]} d5 {[%emt 0:01:48]} 4. f3 {[%emt 0:02:24]} c6 {[%emt 0:09:20]} 5. e4 {[%emt 0:01:11]} Bg7 {[%emt 0:03:11]} 6. Qd2 {[%emt 0:02:19]} O-O {[%emt 0:05:02]} 7. O-O-O {[%emt 0:02:09]} Nbd7 {[%emt 0:03:44]} 8. e5 {[%emt 0:15:13]} Nh5 {[%emt 0:04:10]} 9. Bh6 {[%emt 0:04:22]} f6 {[%emt 0:04:08]} 10. Bxg7 {[%emt 0:02:02]} Nxg7 {[%emt 0:00:20]} 11. f4 {[%emt 0:01:10]} Ne6 {[%emt 0:07:59]} 12. Nf3 {[%emt 0:02:22]} fxe5 {[%emt 0:03:34]} 13. fxe5 {[%emt 0:05:27]} Nb6 {[%emt 0:02:10]} 14. h4 {[%emt 0:02:12]} Ng7 {[%emt 0:00:54]} 15. Bd3 {[%emt 0:08:12]} Bg4 {[%emt 0:01:03]} 16. Qh6 {[%emt 0:17:27]} Nf5 {[%emt 0:04:25]} 17. Bxf5 {[%emt 0:03:01]} Rxf5 {[%emt 0:04:12]} 18. Ng5 {[%emt 0:02:25]} 1-0

[Event "FIDE Open Sachove Univerzity QCC"]
[Site "Ceske Budejovice"]
[Date "2020.07.06"]
[Round "6.18"]
[White "Huemer, Gerald"]
[Black "Kroulik, Vaclav"]
[Result "0-1"]
[ECO "D02"]
[WhiteElo "1721"]
[BlackElo "1442"]
[Annotator "NA"]
[PlyCount "60"]
[EventDate "2020.07.01"]
[EventType "swiss"]
[EventCountry "CZE"]
[SourceTitle "playchess.com"]
[Source "ChessBase"]
[SourceQuality "1"]
[TimeControl "40/5400+30:1800+30"]

1. d4 {[%emt 0:00:00]} d5 {[%emt 0:00:00]} 2. Bf4 {[%emt 0:00:00]} g6 {[%emt 0:00:00]} 3. e3 {[%emt 0:00:00]} Bg7 {[%emt 0:00:05]} 4. Nf3 {[%emt 0:00:00]} Nf6 {[%emt 0:00:28]} 5. h3 {[%emt 0:00:08]} O-O {[%emt 0:00:10]} 6. Nbd2 {[%emt 0:00:04]} b6 {[%emt 0:00:29]} 7. Ne5 {[%emt 0:00:19]} Nfd7 {[%emt 0:00:57]} 8. Ndf3 {[%emt 0:00:07]} f6 {[%emt 0:00:53]} 9. Nd3 {[%emt 0:00:24]} c5 {[%emt 0:00:49]} 10. c3 {[%emt 0:00:08]} Nc6 {[%emt 0:02:14]} 11. a3 {[%emt 0:02:00]} e5 {[%emt 0:01:16]} 12. dxe5 {[%emt 0:00:12]} fxe5 {[%emt 0:00:16]} 13. Bg5 {[%emt 0:00:10]} Qc7 {[%emt 0:05:19]} 14. Nc1 {[%emt 0:01:52]} d4 {[%emt 0:04:01]} 15. exd4 {[%emt 0:01:40]} exd4 {[%emt 0:00:21]} 16. Bc4+ {[%emt 0:00:26]} Kh8 {[%emt 0:00:15]} 17. cxd4 {[%emt 0:00:36]} Re8+ {[%emt 0:00:28]} 18. Ne2 {[%emt 0:00:11]} Nxd4 {[%emt 0:01:00]} 19. Nfxd4 {[%emt 0:02:39]} Bxd4 {[%emt 0:00:44]} 20. O-O {[%emt 0:01:31]} Bxb2 {[%emt 0:02:04]} 21. Nf4 {[%emt 0:06:19]} Be5 {[%emt 0:19:41]} 22. Re1 {[%emt 0:03:46]} Bb7 {[%emt 0:04:42]} 23. Ne6 {[%emt 0:01:21]} Qc6 {[%emt 0:01:37]} 24. Qg4 {[%emt 0:07:02]} h6 {[%emt 0:21:53]} 25. Bf6+ {[%emt 0:02:05]} Nxf6 {[%emt 0:01:38]} 26. Qxg6 {[%emt 0:04:55]} Rg8 {[%emt 0:00:30]} 27. Qxh6+ {[%emt 0:00:30]} Nh7 {[%emt 0:00:08]} 28. f3 {[%emt 0:00:40]} Qxf3 {[%emt 0:32:02]} 29. Ra2 {[%emt 1:05:25]} Rxg2+ {[%emt 0:00:30]} 30. Rxg2 {[%emt 0:00:30]} Qxg2# {[%emt 0:00:30]} 0-1

[Event "FIDE Open Sachove Univerzity QCC"]
[Site "Ceske Budejovice"]
[Date "2020.07.06"]
[Round "6.19"]
[White "Strapec, Lukas"]
[Black "Pokora, Lubomir"]
[Result "1/2-1/2"]
[ECO "A41"]
[WhiteElo "1525"]
[BlackElo "1800"]
[Annotator "NA"]
[PlyCount "91"]
[EventDate "2020.07.01"]
[EventType "swiss"]
[EventCountry "CZE"]
[SourceTitle "playchess.com"]
[Source "ChessBase"]
[SourceQuality "1"]
[TimeControl "40/5400+30:1800+30"]

1. d4 {[%emt 0:00:00]} d6 {[%emt 0:00:00]} 2. Nf3 {[%emt 0:00:32]} Bg4 {[%emt 0:00:00]} 3. e4 {[%emt 0:02:39]} e6 {[%emt 0:00:35]} 4. Nc3 {[%emt 0:02:53]} Nd7 {[%emt 0:02:32]} 5. Be2 {[%emt 0:02:04]} c6 {[%emt 0:04:57]} 6. O-O {[%emt 0:03:46] A41: 1 d4 d6: Tartakower System and Modern Defence.} Be7 {[%emt 0:02:47]} 7. Bf4 {[%emt 0:04:06]} Ngf6 {[%emt 0:11:41]} 8. h3 {[%emt 0:10:00]} Bh5 {[%emt 0:00:03]} 9. e5 {[%emt 0:05:13]} dxe5 {[%emt 0:00:19]} 10. Nxe5 {[%emt 0:02:37]} Bxe2 {[%emt 0:00:15]} 11. Qxe2 {[%emt 0:00:44] [#]} Nd5 $146 {[%emt 0:02:20]} ({Predecessor:} 11... O-O 12. Rad1 Nd5 13. Nxd5 exd5 14. Rfe1 Re8 15. Rd3 Nxe5 16. Bxe5 Bd6 {½-½ (54) Skacelova Zahorovska,L (2090)-Nemcova,V (2070) Pardubice 1991}) 12. Nxd5 {[%emt 0:02:07]} cxd5 {[%emt 0:00:21]} 13. Qb5 {[%emt 0:03:51]} Qc8 {[%emt 0:00:36]} 14. c3 {[%emt 0:08:48]} a6 {[%emt 0:01:31]} 15. Qxd7+ {[%emt 0:03:30]} Qxd7 {[%emt 0:00:17]} 16. Nxd7 {[%emt 0:00:13]} Kxd7 {[%emt 0:00:09]} 17. g4 {[%emt 0:05:29]} Bd6 {[%emt 0:03:25]} 18. Be5 {[%emt 0:03:57]} f6 {[%emt 0:00:10]} 19. Bxd6 {[%emt 0:00:29]} Kxd6 {[%emt 0:00:03]} 20. f4 {[%emt 0:00:30]} Rae8 {[%emt 0:03:36]} 21. Rae1 {[%emt 0:03:18]} Re7 {[%emt 0:00:14]} 22. Rf3 {[%emt 0:07:14]} Rhe8 $11 {[%emt 0:02:28]} 23. Kf2 {[%emt 0:04:58]} b6 {[%emt 0:06:41]} 24. h4 {[%emt 0:09:34]} h5 {[%emt 0:14:00]} 25. g5 {[%emt 0:05:15]} f5 {[%emt 0:03:28]} 26. Re5 {[%emt 0:01:51]} g6 {[%emt 0:00:09]} 27. Ke2 {[%emt 0:01:14]} Rc8 {[%emt 0:00:07]} 28. Kd2 {[%emt 0:00:48]} b5 {[%emt 0:01:17]} 29. b4 {[%emt 0:00:59]} Ra8 {[%emt 0:00:59]} 30. a3 {[%emt 0:02:22]} a5 {[%emt 0:00:32]} 31. Ree3 {[%emt 0:03:44]} Rc7 {[%emt 0:04:37]} 32. Kc2 {[%emt 0:00:23]} axb4 {[%emt 0:02:29]} 33. axb4 {[%emt 0:00:02]} Ra2+ {[%emt 0:00:13]} 34. Kb1 {[%emt 0:00:12]} Rca7 {[%emt 0:00:25]} 35. Rd3 {[%emt 0:00:52]} Rh2 {[%emt 0:03:37]} 36. Rh3 {[%emt 0:00:26]} Raa2 {[%emt 0:00:36]} 37. Rdf3 {[%emt 0:00:46]} Rae2 {[%emt 0:01:11]} 38. Rxh2 {[%emt 0:00:33]} Rxh2 {[%emt 0:00:00]} 39. Rg3 {[%emt 0:00:46]} Rxh4 {[%emt 0:00:00]} 40. Rf3 {[%emt 0:00:39]} Rh2 {[%emt 0:00:06]} 41. Kc1 {[%emt 0:30:26]} Re2 {[%emt 0:32:07]} 42. Rh3 {[%emt 0:00:00]} Rf2 {[%emt 0:00:00]} 43. Rh4 {[%emt 0:00:00]} Ke7 {[%emt 0:00:00]} 44. Kd1 {[%emt 0:00:00]} Kf7 {[%emt 0:00:00]} 45. Ke1 {[%emt 0:00:00]} Rg2 {[%emt 0:00:00]} 46. Kd1 {[%emt 0:00:00]} 1/2-1/2

[Event "FIDE Open Sachove Univerzity QCC"]
[Site "Ceske Budejovice"]
[Date "2020.07.06"]
[Round "6.20"]
[White "Macho, Miloslav"]
[Black "Trcka, Bohdan"]
[Result "1-0"]
[ECO "C25"]
[WhiteElo "1671"]
[BlackElo "1528"]
[Annotator "NA"]
[PlyCount "163"]
[EventDate "2020.07.01"]
[EventType "swiss"]
[EventCountry "CZE"]
[SourceTitle "playchess.com"]
[Source "ChessBase"]
[SourceQuality "1"]
[TimeControl "40/5400+30:1800+30"]

1. e4 {[%emt 0:02:18]} e5 {[%emt 0:37:50]} 2. Nc3 {[%emt 0:00:35]} c6 {[%emt 0:00:05]} 3. d4 {[%emt 0:01:16]} Bd6 {[%emt 0:00:22]} 4. Nf3 {[%emt 0:00:47]} exd4 {[%emt 0:00:17]} 5. Qxd4 {[%emt 0:02:25]} Bf8 {[%emt 0:00:07]} 6. Bc4 {[%emt 0:03:54]} Qb6 {[%emt 0:02:49]} 7. Qe5+ {[%emt 0:10:41]} Ne7 {[%emt 0:00:53]} 8. O-O {[%emt 0:01:00]} f6 {[%emt 0:00:23]} 9. Qg3 {[%emt 0:05:31]} Na6 {[%emt 0:01:28]} 10. e5 {[%emt 0:02:45]} Qc7 {[%emt 0:01:42]} 11. Bxa6 {[%emt 0:05:43]} bxa6 {[%emt 0:00:04]} 12. exf6 {[%emt 0:00:27]} Qxg3 {[%emt 0:00:16]} 13. hxg3 {[%emt 0:00:06]} gxf6 {[%emt 0:00:07]} 14. Ne4 {[%emt 0:01:10]} Ng8 {[%emt 0:00:43]} 15. Bf4 {[%emt 0:00:22]} d5 {[%emt 0:00:57]} 16. Nd6+ {[%emt 0:00:47]} Bxd6 {[%emt 0:00:28]} 17. Bxd6 {[%emt 0:00:01]} Kd7 {[%emt 0:00:24]} 18. Bc5 {[%emt 0:00:32]} h5 {[%emt 0:00:30]} 19. Rfe1 {[%emt 0:03:03]} Rh7 {[%emt 0:03:41]} 20. Nh4 {[%emt 0:02:55]} Rb8 {[%emt 0:00:16]} 21. b3 {[%emt 0:01:31]} Rb7 {[%emt 0:00:20]} 22. Rad1 {[%emt 0:01:17]} Kc7 {[%emt 0:00:15]} 23. Re8 {[%emt 0:06:32]} Nh6 {[%emt 0:01:12]} 24. Rde1 {[%emt 0:04:00]} Ng4 {[%emt 0:00:20]} 25. Bd4 {[%emt 0:03:41]} a5 {[%emt 0:02:42]} 26. f3 {[%emt 0:00:35]} Nh6 {[%emt 0:01:01]} 27. Bxf6 {[%emt 0:01:00]} Bd7 {[%emt 0:00:08]} 28. Rf8 {[%emt 0:05:50]} Rf7 {[%emt 0:01:22]} 29. Rxf7 {[%emt 0:02:00]} Nxf7 {[%emt 0:00:02]} 30. Re7 {[%emt 0:00:44]} Nd8 {[%emt 0:01:06]} 31. Rh7 {[%emt 0:00:48]} c5 {[%emt 0:01:09]} 32. Rxh5 {[%emt 0:00:16]} Kc8 {[%emt 0:00:24]} 33. Bxd8 {[%emt 0:00:12]} Kxd8 {[%emt 0:00:07]} 34. Rxd5 {[%emt 0:00:11]} Rc7 {[%emt 0:00:10]} 35. g4 {[%emt 0:03:25]} Ke8 {[%emt 0:00:16]} 36. Re5+ {[%emt 0:00:22]} Kf7 {[%emt 0:00:15]} 37. Nf5 {[%emt 0:01:48]} a4 {[%emt 0:00:29]} 38. Nd6+ {[%emt 0:01:03]} Kf8 {[%emt 0:00:35]} 39. Re3 {[%emt 0:01:33]} axb3 {[%emt 0:00:17]} 40. axb3 {[%emt 0:00:20]} a5 {[%emt 0:00:11]} 41. Rc3 {[%emt 0:31:42]} Rc6 {[%emt 0:30:31]} 42. Ne4 {[%emt 0:00:43]} c4 {[%emt 0:00:38]} 43. bxc4 {[%emt 0:05:19]} a4 {[%emt 0:00:21]} 44. c5 {[%emt 0:01:50]} Ra6 {[%emt 0:01:15]} 45. Ra3 {[%emt 0:00:24]} Bc6 {[%emt 0:00:40]} 46. Kf2 {[%emt 0:00:46]} Kg7 {[%emt 0:00:45]} 47. Ke3 {[%emt 0:00:35]} Ra5 {[%emt 0:01:15]} 48. Kd4 {[%emt 0:00:56]} Kg6 {[%emt 0:00:50]} 49. c4 {[%emt 0:00:43]} Ra8 {[%emt 0:00:29]} 50. Nc3 {[%emt 0:01:23]} Rd8+ {[%emt 0:00:24]} 51. Ke3 {[%emt 0:00:27]} Re8+ {[%emt 0:00:19]} 52. Kf2 {[%emt 0:00:16]} Re5 {[%emt 0:00:38]} 53. Nxa4 {[%emt 0:01:41]} Bxa4 {[%emt 0:01:10]} 54. Rxa4 {[%emt 0:00:06]} Rxc5 {[%emt 0:00:04]} 55. f4 {[%emt 0:00:19]} Rc6 {[%emt 0:00:16]} 56. Rb4 {[%emt 0:00:34]} Kf6 {[%emt 0:00:36]} 57. Kf3 {[%emt 0:00:29]} Re6 {[%emt 0:00:46]} 58. g5+ {[%emt 0:00:17]} Kg6 {[%emt 0:00:45]} 59. c5 {[%emt 0:00:16]} Re7 {[%emt 0:01:24]} 60. Rb6+ {[%emt 0:00:11]} Kg7 {[%emt 0:01:22]} 61. c6 {[%emt 0:00:54]} Re8 {[%emt 0:01:10]} 62. c7 {[%emt 0:00:30]} Rc8 {[%emt 0:00:23]} 63. Rc6 {[%emt 0:00:27]} Kh7 {[%emt 0:00:28]} 64. f5 {[%emt 0:00:10]} Kg7 {[%emt 0:00:26]} 65. Kf4 {[%emt 0:00:06]} Kh7 {[%emt 0:00:14]} 66. f6 {[%emt 0:00:15]} Kg6 {[%emt 0:00:26]} 67. g4 {[%emt 0:00:06]} Rxc7 {[%emt 0:00:13]} 68. Re6 {[%emt 0:02:43]} Rc4+ {[%emt 0:00:32]} 69. Re4 {[%emt 0:00:17]} Rc1 {[%emt 0:00:34]} 70. Re7 {[%emt 0:02:18]} Rc7 {[%emt 0:01:25]} 71. Rg7+ {[%emt 0:00:47]} Rxg7 {[%emt 0:00:11]} 72. fxg7 {[%emt 0:00:07]} Kxg7 {[%emt 0:00:17]} 73. Kf5 {[%emt 0:00:10]} Kf7 {[%emt 0:00:29]} 74. g6+ {[%emt 0:00:12]} Kg8 {[%emt 0:00:35]} 75. Kg5 {[%emt 0:00:24]} Kg7 {[%emt 0:00:12]} 76. Kh5 {[%emt 0:00:08]} Kg8 {[%emt 0:00:17]} 77. Kh6 {[%emt 0:00:09]} Kh8 {[%emt 0:00:24]} 78. g7+ {[%emt 0:00:08]} Kg8 {[%emt 0:00:10]} 79. g5 {[%emt 0:00:09]} Kf7 {[%emt 0:00:14]} 80. Kh7 {[%emt 0:00:08]} Ke7 {[%emt 0:00:10]} 81. g8=Q {[%emt 0:00:10]} Kd6 {[%emt 0:00:11]} 82. Qc4 {[%emt 0:00:17]} 1-0

[Event "FIDE Open Sachove Univerzity QCC"]
[Site "Ceske Budejovice"]
[Date "2020.07.06"]
[Round "6.21"]
[White "Zezula, Jakub"]
[Black "Veverka, Vladimir"]
[Result "0-1"]
[ECO "C01"]
[WhiteElo "1449"]
[BlackElo "1644"]
[Annotator "NA"]
[PlyCount "68"]
[EventDate "2020.07.01"]
[EventType "swiss"]
[EventCountry "CZE"]
[SourceTitle "playchess.com"]
[Source "ChessBase"]
[SourceQuality "1"]
[TimeControl "40/5400+30:1800+30"]

1. e4 {[%emt 0:00:00]} e6 {[%emt 0:00:00]} 2. d4 {[%emt 0:00:00]} d5 {[%emt 0:00:00]} 3. exd5 {[%emt 0:00:00]} exd5 {[%emt 0:00:11]} 4. c4 {[%emt 0:00:00]} c6 {[%emt 0:00:29]} 5. Nc3 {[%emt 0:00:44]} Nf6 {[%emt 0:00:36]} 6. Bg5 {[%emt 0:00:49]} Be6 {[%emt 0:01:57]} 7. c5 {[%emt 0:02:05]} Be7 {[%emt 0:01:14]} 8. Bd3 {[%emt 0:04:14]} O-O {[%emt 0:01:11]} 9. Nge2 {[%emt 0:05:52]} Nbd7 {[%emt 0:01:08]} 10. O-O {[%emt 0:00:21]} b6 {[%emt 0:01:47]} 11. b4 {[%emt 0:00:17]} b5 {[%emt 0:04:46]} 12. h3 {[%emt 0:06:16]} Ne8 {[%emt 0:03:00]} 13. Bxe7 {[%emt 0:03:01]} Qxe7 {[%emt 0:02:14]} 14. f4 {[%emt 0:03:52]} f6 {[%emt 0:03:01]} 15. f5 {[%emt 0:02:30]} Bf7 {[%emt 0:00:07]} 16. Nf4 {[%emt 0:02:06]} Qe3+ {[%emt 0:02:00]} 17. Kh1 {[%emt 0:04:00]} Qxd4 {[%emt 0:00:55]} 18. Nxb5 {[%emt 0:07:47]} Qxb4 {[%emt 0:04:40]} 19. Rb1 {[%emt 0:01:06]} Qxc5 {[%emt 0:00:45]} 20. Rc1 {[%emt 0:11:16]} Qb6 {[%emt 0:04:05]} 21. Ng6 {[%emt 0:07:48]} Bxg6 {[%emt 0:07:29]} 22. fxg6 {[%emt 0:00:20]} cxb5 {[%emt 0:00:25]} 23. gxh7+ {[%emt 0:01:55]} Kh8 {[%emt 0:00:15]} 24. Rb1 {[%emt 0:01:21]} a6 {[%emt 0:00:23]} 25. Bf5 {[%emt 0:02:19]} Qd6 {[%emt 0:00:12]} 26. Re1 {[%emt 0:01:06]} Ne5 {[%emt 0:00:10]} 27. Qb3 {[%emt 0:01:22]} Nc7 {[%emt 0:00:30]} 28. Rbd1 {[%emt 0:00:58]} Rfd8 {[%emt 0:00:30]} 29. Qg3 {[%emt 0:02:08]} Nc4 {[%emt 0:05:01]} 30. Qg6 {[%emt 0:00:50]} Re8 {[%emt 0:01:14]} 31. h4 {[%emt 0:01:20]} Ne3 {[%emt 0:00:51]} 32. Rc1 {[%emt 0:04:47]} Nxf5 {[%emt 0:01:38]} 33. Rxe8+ {[%emt 0:00:27]} Rxe8 {[%emt 0:00:24]} 34. Qxf5 {[%emt 0:00:14]} Qg3 {[%emt 0:02:02]} 0-1